bitfinex-derivatives/quotes_ETHF0:USTF0_20250428
["timestamp","ask_amount","ask_price","bid_price","bid_amount"]
[1745823319523,0.7764,1802.6,1802.5,3.802]
[1745823320319,0.7764,1802.6,1802.5,6.2305]
[1745823320628,0.77639,1802.7,1802.5,7.00694]
[1745823320824,0.77639,1802.7,1802.6,1.602]
[1745823321127,0.77639,1802.7,1802.6,2.4458]
[1745823323915,7.60515,1802.8,1802.6,2.4458]
[1745823324120,7.60515,1802.8,1802.7,1.7424]
[1745823325124,7.60515,1802.8,1802.7,5.5444]
[1745823328631,4.39735,1802.8,1802.7,5.5444]
[1745823328831,7.60515,1802.8,1802.7,5.5444]
[1745823331537,4.39735,1802.8,1802.7,5.5444]
[1745823339443,4.39735,1802.8,1802.7,6.32076]
[1745823339444,3.621,1802.8,1802.7,6.32076]
[1745823340049,4.39732,1802.8,1802.7,6.32076]
[1745823341340,0.77632,1802.8,1802.7,6.32076]
[1745823342838,3.98411,1802.9,1802.7,6.32076]
[1745823343034,3.98411,1802.9,1802.8,2.4304]
[1745823343845,0.77631,1802.9,1802.8,2.4304]
[1745823344145,3.98411,1802.9,1802.8,6.2324]
[1745823345845,0.77631,1802.9,1802.8,6.2324]
[1745823346044,3.98411,1802.9,1802.8,6.2324]
[1745823347338,3.98411,1802.9,1802.8,7.0792]
[1745823347648,2.45886,1803.0,1802.8,7.85552]
[1745823347950,2.45886,1803.0,1802.9,1.7134]
[1745823348150,2.45886,1803.0,1802.9,5.5154]
[1745823351251,3.27826,1803.0,1802.9,5.5154]
[1745823352761,2.502,1803.0,1802.9,6.29167]
[1745823352958,5.18722,1803.1,1802.9,6.29167]
[1745823352959,4.39622,1803.1,1802.9,6.29167]
[1745823353155,0.77617,1803.2,1803.0,1.7406]
[1745823353360,0.77617,1803.2,1803.1,0.8209]
[1745823353858,2.36117,1803.2,1803.1,2.5615]
[1745823355061,1.59552,1803.3,1803.1,3.33768]
[1745823355362,5.99818,1803.4,1803.2,2.52084]
[1745823355565,5.99818,1803.4,1803.3,2.6092]
[1745823356150,5.99818,1803.4,1803.3,6.4112]
[1745823356562,5.18394,1803.5,1803.3,6.4112]
[1745823356859,0.77606,1803.4,1803.3,6.4112]
[1745823357053,0.77606,1803.4,1803.3,4.6665]
[1745823358064,6.011,1803.5,1803.3,4.6665]
[1745823359062,0.77606,1803.4,1803.3,4.6665]
[1745823359260,2.35676,1803.4,1803.3,4.6665]
[1745823366767,7.6157,1803.5,1803.3,4.6665]
[1745823367068,7.60185,1803.5,1803.3,5.4426]
[1745823367367,4.39405,1803.5,1803.4,0.8552]
[1745823367562,3.618,1803.5,1803.4,1.63126]
[1745823367764,4.39401,1803.5,1803.4,41.6552]
[1745823367959,3.618,1803.5,1803.4,41.6552]
[1745823368160,4.39401,1803.5,1803.4,45.4572]
[1745823369667,4.39401,1803.5,1803.4,46.23326]
[1745823369668,3.618,1803.5,1803.4,46.23326]
[1745823369867,3.618,1803.5,1803.4,47.94466]
[1745823370568,0.77601,1803.5,1803.4,47.94466]
[1745823370962,0.776,1803.6,1803.4,47.94466]
[1745823371165,0.776,1803.6,1803.5,1.6751]
[1745823372172,0.776,1803.6,1803.5,5.4771]
[1745823372363,0.77596,1803.7,1803.5,5.4771]
[1745823372563,3.618,1803.8,1803.7,0.77593]
[1745823372868,1.5948,1803.9,1803.7,0.77591]
[1745823373068,1.5948,1803.9,1803.8,2.5105]
[1745823373367,2.37064,1803.9,1803.8,2.5105]
[1745823373562,1.5948,1803.9,1803.8,43.3105]
[1745823374265,1.5948,1803.9,1803.8,47.1125]
[1745823375970,2.37064,1803.9,1803.8,47.1125]
[1745823376673,1.5948,1803.9,1803.8,47.1125]
[1745823376971,2.37064,1803.9,1803.8,47.1125]
[1745823377171,1.5948,1803.9,1803.8,47.1125]
[1745823377469,2.37064,1803.9,1803.8,47.1125]
[1745823377674,1.5948,1803.9,1803.8,47.1125]
[1745823378266,1.5948,1803.9,1803.8,47.88839]
[1745823379075,1.5948,1803.9,1803.8,47.1125]
[1745823379475,1.5948,1803.9,1803.8,47.88839]
[1745823380975,1.5948,1803.9,1803.8,47.1125]
[1745823382877,2.37064,1803.9,1803.8,47.1125]
[1745823383476,2.37064,1803.9,1803.8,44.602]
[1745823386277,2.37064,1803.9,1803.8,46.2008]
[1745823387578,2.37064,1803.9,1803.8,47.0626]
[1745823392787,0.8223,1804.0,1803.8,47.0626]
[1745823393085,1.5981,1804.0,1803.9,1.6704]
[1745823394285,3.1929,1804.0,1803.9,5.4724]
[1745823394886,6.4007,1804.0,1803.9,3.802]
[1745823395083,7.2152,1804.0,1803.9,3.802]
[1745823395384,7.30744729,1804.0,1803.9,3.802]
[1745823396684,7.2152,1804.0,1803.9,3.802]
[1745823398588,4.0074,1804.0,1803.9,3.802]
[1745823398788,7.2152,1804.0,1803.9,3.802]
[1745823399386,4.0074,1804.0,1803.9,3.802]
[1745823399592,7.2152,1804.0,1803.9,3.802]
[1745823399993,4.0074,1804.0,1803.9,3.802]
[1745823400193,7.2152,1804.0,1803.9,3.802]
[1745823400387,4.0074,1804.0,1803.9,3.802]
[1745823400788,7.2152,1804.0,1803.9,3.802]
[1745823401090,6.4007,1804.0,1803.9,3.802]
[1745823401291,6.4007,1804.0,1803.9,4.5935]
[1745823401592,3.1929,1804.0,1803.9,4.5935]
[1745823401990,6.4007,1804.0,1803.9,4.5935]
[1745823402593,0.7758,1804.0,1803.9,4.5935]
[1745823407495,2.4457,1804.0,1803.9,4.5935]
[1745823408087,0.7758,1804.0,1803.9,4.5935]
[1745823410292,0.7758,1804.0,1803.9,6.2704]
[1745823412088,0.7758,1804.0,1803.9,47.0704]
[1745823415097,2.3796,1804.0,1803.9,47.0704]
[1745823415801,0.7758,1804.0,1803.9,47.0704]
[1745823420908,5.888,1804.5,1803.9,47.0704]
[1745823420909,3.2078,1805.0,1803.9,52.0704]
[1745823421106,5.888,1805.7,1804.7,3.2078]
[1745823421107,0.77545,1804.9,1804.7,3.2078]
[1745823421406,0.77545,1804.9,1804.8,0.8285]
[1745823421608,0.77545,1804.9,1804.8,2.5697]
[1745823422102,0.77545,1804.9,1804.8,6.3717]
[1745823424807,0.77545,1804.9,1804.8,3.802]
[1745823425013,4.81905,1804.9,1804.8,3.802]
[1745823425208,4.81905,1804.9,1804.8,2.97728]
[1745823425409,9.91124564,1804.9,1804.8,2.18046]
[1745823426113,0.77558,1804.5,1804.4,43.2514]
[1745823426707,0.77557,1804.6,1804.4,46.4592]
[1745823426912,0.77557,1804.6,1804.5,1.6941]
[1745823427115,0.77557,1804.6,1804.5,5.4961]
[1745823428515,0.77557,1804.6,1804.5,3.802]
[1745823431921,0.77557,1804.6,1804.5,5.4815]
[1745823435017,0.77553,1804.7,1804.5,5.4815]
[1745823435220,6.2102,1804.8,1804.6,1.6537]
[1745823435422,6.98566,1804.8,1804.7,0.8164]
[1745823436824,6.98566,1804.8,1804.7,1.6886]
[1745823437221,6.98566,1804.8,1804.7,5.4906]
[1745823437925,6.98566,1804.8,1804.7,3.802]
[1745823439117,6.98566,1804.8,1804.7,5.5095]
[1745823440325,6.98566,1804.8,1804.7,3.802]
[1745823440827,7.07786095,1804.8,1804.7,3.802]
[1745823441125,0.77554,1804.6,1804.5,4.6538]
[1745823441326,0.77554,1804.6,1804.5,6.2702]
[1745823441713,0.77554,1804.6,1804.5,7.1022]
[1745823446923,0.77554,1804.6,1804.5,3.802]
[1745823447126,1.57984,1804.6,1804.5,3.802]
[1745823447524,1.57984,1804.6,1804.5,6.311]
[1745823447525,0.77554,1804.6,1804.5,6.311]
[1745823447822,0.77554,1804.6,1804.5,7.1591]
[1745823448029,3.613,1804.8,1804.5,7.1591]
[1745823448222,4.38848,1804.8,1804.6,1.7075]
[1745823448622,0.7755,1804.7,1804.6,1.7075]
[1745823449120,0.7755,1804.7,1804.6,4.9153]
[1745823450728,1.5939,1804.9,1804.6,4.9153]
[1745823450923,0.7755,1804.8,1804.7,1.733]
[1745823451130,0.77545,1804.9,1804.7,5.535]
[1745823451327,0.77538,1805.0,1804.8,3.4332]
[1745823451528,0.77538,1805.0,1804.9,1.733]
[1745823451725,7.59414,1805.1,1804.9,2.50841]
[1745823451925,5.1971,1805.4,1805.0,3.2078]
[1745823452127,5.1971,1805.4,1805.0,9.51813]
[1745823452128,0.77526,1805.3,1805.0,9.51813]
[1745823452333,3.611,1805.7,1805.2,3.2078]
[1745823452527,3.611,1805.7,1805.4,3.2078]
[1745823452833,0.77511,1805.6,1805.5,2.5594]
[1745823453019,1.728,1805.8,1805.5,2.5594]
[1745823453330,0.77507,1805.7,1805.6,1.7193]
[1745823454026,0.77507,1805.7,1805.6,42.5193]
[1745823454728,0.77507,1805.7,1805.6,40.8]
[1745823454729,3.98287,1805.7,1805.6,40.8]
[1745823455031,8.42229,1805.7,1805.5,3.802]
[1745823455226,2.50311,1805.6,1805.5,3.802]
[1745823455423,3.34351,1805.6,1805.5,3.802]
[1745823456920,2.5684,1805.6,1805.5,3.802]
[1745823457731,3.34351,1805.6,1805.5,3.802]
[1745823457934,8.43567408,1805.6,1805.5,3.802]
[1745823458133,0.77518,1805.5,1805.0,3.3902]
[1745823458334,7.593,1805.4,1805.1,40.8]
[1745823458536,1.6081,1805.3,1805.1,42.5272]
[1745823461037,1.6081,1805.3,1805.2,1.5937]
[1745823461834,2.38334,1805.3,1805.2,1.5937]
[1745823462235,2.38334,1805.3,1805.2,5.3957]
[1745823462427,1.6081,1805.3,1805.2,5.3957]
[1745823462623,2.38334,1805.3,1805.2,5.3957]
[1745823462939,1.6081,1805.3,1805.2,5.3957]
[1745823463634,7.593,1805.4,1805.2,5.3957]
[1745823464035,1.6963,1805.3,1805.2,5.3957]
[1745823464738,2.47154,1805.3,1805.2,5.3957]
[1745823465034,2.47154,1805.3,1805.2,3.802]
[1745823465634,7.47154,1805.3,1805.2,2.94943]
[1745823465938,2.56371438,1805.3,1805.2,2.94943]
[1745823466130,0.77533,1805.1,1805.0,40.8]
[1745823466731,0.77537,1805.0,1804.9,1.5925]
[1745823467131,0.77537,1805.0,1804.9,46.1945]
[1745823467637,0.7753,1805.2,1804.9,51.1945]
[1745823467833,0.77533,1805.1,1805.0,1.6149]
[1745823468942,0.77531,1805.2,1805.0,1.6149]
[1745823469134,0.77531,1805.2,1805.1,0.8131]
[1745823469536,0.77531,1805.2,1805.1,2.428]
[1745823472343,3.61,1805.4,1805.1,2.428]
[1745823472537,0.77527,1805.3,1805.2,1.7415]
[1745823473148,0.77527,1805.3,1805.2,5.5435]
[1745823473844,0.77522,1805.4,1805.2,5.5435]
[1745823474045,0.77522,1805.4,1805.3,1.5753]
[1745823474250,0.7752,1805.4,1805.3,1.5753]
[1745823474644,2.4603,1805.5,1805.3,1.5753]
[1745823475250,2.4603,1805.5,1805.3,5.3773]
[1745823475444,2.4603,1805.5,1805.4,0.8087]
[1745823475743,2.4603,1805.5,1805.4,2.384]
[1745823476142,3.98292,1805.6,1805.4,6.186]
[1745823476342,3.98292,1805.6,1805.5,1.5753]
[1745823476541,3.2078,1805.6,1805.5,1.5753]
[1745823477245,3.2078,1805.6,1805.5,5.3773]
[1745823477446,3.98291,1805.6,1805.5,5.3773]
[1745823477849,3.2078,1805.6,1805.5,5.3773]
[1745823479451,3.98291,1805.6,1805.5,3.802]
[1745823479642,6.45381,1805.6,1805.5,3.802]
[1745823480248,5.6787,1805.6,1805.5,3.802]
[1745823480449,3.2078,1805.6,1805.5,5.4749]
[1745823480647,3.2078,1805.6,1805.5,10.4749]
[1745823480844,3.2078,1806.1,1805.6,0.77509]
[1745823481149,0.77496,1806.0,1805.7,0.798]
[1745823481354,3.98273,1806.1,1805.8,1.6729]
[1745823481746,1.6183,1806.2,1805.8,1.6729]
[1745823481954,0.8670433,1806.1,1805.8,4.8807]
[1745823482148,0.77491,1806.1,1805.9,1.6729]
[1745823482549,0.77491,1806.1,1806.0,0.8675]
[1745823482749,1.6183,1806.2,1805.8,7.0098]
[1745823482951,0.77498,1805.9,1805.8,7.0098]
[1745823483449,3.20898,1805.9,1805.8,7.0098]
[1745823483656,2.434,1805.9,1805.8,7.0098]
[1745823483956,2.42188,1805.9,1805.8,8.6331]
[1745823484254,0.77498,1805.9,1805.8,5.4253]
[1745823484455,2.42188,1805.9,1805.8,3.802]
[1745823484756,10.72182,1805.9,1805.8,0.5942]
[1745823484949,5.72182,1805.9,1805.8,0.5942]
[1745823485147,17.07366,1805.9,1805.4,3.2078]
[1745823485346,3.2078,1805.5,1805.0,4.0753]
[1745823485547,0.77533,1805.1,1805.0,5.6986]
[1745823486243,0.77533,1805.1,1805.0,9.5006]
[1745823488154,0.77533,1805.1,1805.0,10.3122]
[1745823492049,0.77531,1805.2,1805.0,10.3122]
[1745823492250,0.77531,1805.2,1805.1,1.7209]
[1745823493459,2.42217,1805.3,1805.1,1.7209]
[1745823493654,2.42217,1805.3,1805.2,3.2078]
[1745823494157,2.42217,1805.3,1805.2,7.0098]
[1745823495150,2.42217,1805.3,1805.2,3.802]
[1745823496048,2.51434319,1805.3,1805.2,3.802]
[1745823496253,1.6469,1805.3,1805.2,3.802]
[1745823496452,1.6469,1805.3,1805.2,7.0098]
[1745823497659,3.608,1805.4,1805.2,7.0098]
[1745823497958,3.608,1805.4,1805.3,1.7019]
[1745823498159,3.608,1805.4,1805.3,5.5039]
[1745823498960,3.608,1805.4,1805.3,6.27914]
[1745823499160,3.608,1805.4,1805.3,5.5039]
[1745823500260,5.208,1805.4,1805.3,5.5039]
[1745823501356,5.9832,1805.4,1805.3,5.5039]
[1745823502549,5.9832,1805.4,1805.3,6.3191]
[1745823502750,5.9832,1805.4,1805.3,7.1813]
[1745823505860,4.3832,1805.4,1805.3,7.1813]
[1745823506267,0.7752,1805.4,1805.3,7.1813]
[1745823506768,0.77517,1805.5,1805.3,7.95653]
[1745823506969,0.77517,1805.5,1805.4,4.8192]
[1745823508056,0.77517,1805.5,1805.4,8.6212]
[1745823508462,1.5751,1805.6,1805.4,8.6212]
[1745823508661,0.77516,1805.5,1805.4,8.6212]
[1745823509371,2.35025,1805.6,1805.4,8.6212]
[1745823509668,2.35025,1805.6,1805.5,1.6769]
[1745823510057,2.35025,1805.6,1805.5,5.4789]
[1745823512673,2.35025,1805.6,1805.5,3.802]
[1745823513777,4.38309,1805.7,1805.5,5.4253]
[1745823514066,4.38309,1805.7,1805.6,2.4178]
[1745823514273,1.6052,1805.6,1805.4,5.6256]
[1745823514473,2.38035,1805.6,1805.4,5.6256]
[1745823514875,0.77516,1805.5,1805.4,5.6256]
[1745823515072,0.77516,1805.5,1805.4,4.0023]
[1745823515375,0.77516,1805.5,1805.4,7.8043]
[1745823517075,2.47956,1805.5,1805.4,7.8043]
[1745823518674,2.47956,1805.5,1805.4,7.0098]
[1745823521975,2.47956,1805.5,1805.4,3.802]
[1745823522674,6.08756,1805.5,1805.4,3.802]
[1745823523176,0.7752,1805.4,1805.3,3.802]
[1745823523476,2.4092,1805.4,1805.3,3.802]
[1745823525173,2.4092,1805.4,1805.2,3.2078]
[1745823525379,2.40924,1805.3,1805.2,3.2078]
[1745823526181,2.40924,1805.3,1805.2,7.0098]
[1745823530779,2.40924,1805.3,1805.2,3.802]
[1745823531182,0.77533,1805.1,1805.0,6.4866]
[1745823532082,0.77533,1805.1,1805.0,10.2886]
[1745823537690,0.77533,1805.1,1805.0,9.4256]
[1745823538893,3.3717,1805.2,1805.0,9.4256]
[1745823539094,8.75376,1805.5,1805.0,9.4256]
[1745823539095,3.608,1805.5,1805.0,9.4256]
[1745823539294,3.608,1805.5,1805.4,3.2078]
[1745823540093,3.608,1805.5,1805.4,7.0098]
[1745823540587,3.608,1805.5,1805.4,7.8335]
[1745823540793,3.608,1805.5,1805.4,50.37]
[1745823541795,6.032,1805.8,1805.4,51.14519]
[1745823541995,6.032,1805.8,1805.5,1.7365]
[1745823542194,1.5978,1805.7,1805.5,5.5385]
[1745823542395,3.608,1805.8,1805.6,2.5866]
[1745823542593,3.608,1805.8,1805.7,1.7365]
[1745823543096,5.2058,1805.8,1805.7,5.5385]
[1745823543294,3.608,1805.8,1805.7,49.5463]
[1745823543793,0.8022,1806.0,1805.7,49.5463]
[1745823544003,0.8022,1806.0,1805.8,2.5176]
[1745823544298,0.8022,1806.0,1805.8,3.29261]
[1745823544299,2.4218,1806.0,1805.8,3.29261]
[1745823544492,2.4218,1806.0,1805.7,47.8098]
[1745823544493,0.77503,1805.8,1805.7,47.8098]
[1745823544698,0.77503,1805.8,1805.7,45.04524983]
[1745823544993,4.38303,1805.8,1805.7,45.04524983]
[1745823545198,6.0947733,1805.8,1805.7,41.24324983]
[1745823545791,5.3197433,1805.8,1805.7,41.24324983]
[1745823545991,6.00263,1805.8,1805.7,41.24324983]
[1745823546201,6.00263,1805.8,1805.7,45.04524983]
[1745823546914,3.608,1805.8,1805.7,45.04524983]
[1745823547100,3.608,1805.8,1805.7,45.89154983]
[1745823547300,3.608,1805.8,1805.7,47.51674983]
[1745823547607,3.608,1805.8,1805.7,48.29181983]
[1745823547809,5.18493,1806.1,1805.8,0.77502]
[1745823548010,0.77494,1806.0,1805.9,2.4534]
[1745823548911,6.84482,1806.1,1805.9,2.4534]
[1745823549115,0.77494,1806.0,1805.9,6.2554]
[1745823549411,3.608,1806.1,1806.0,0.77494]
[1745823549711,3.608,1806.1,1806.0,3.25474]
[1745823550010,3.608,1806.1,1806.0,2.4798]
[1745823550308,3.608,1806.1,1806.0,6.2818]
[1745823550511,3.608,1806.1,1806.0,7.05674]
[1745823551312,3.608,1806.1,1806.0,6.2818]
[1745823551610,0.77487,1806.2,1806.0,7.05673]
[1745823551906,0.77487,1806.2,1806.1,4.869]
[1745823554906,0.77485,1806.2,1806.1,4.869]
[1745823556912,1.649,1806.3,1806.1,4.869]
[1745823557112,2.42383,1806.3,1806.2,1.6443]
[1745823558116,0.77483,1806.3,1806.2,5.4463]
[1745823558610,2.43983,1806.3,1806.2,5.4463]
[1745823560213,2.43981,1806.3,1806.2,5.4463]
[1745823560712,1.665,1806.3,1806.2,3.802]
[1745823560911,2.43981,1806.3,1806.2,6.3414]
[1745823561111,5.23649,1806.4,1806.2,6.3414]
[1745823561416,5.23649,1806.4,1806.3,1.6972]
[1745823561604,6.97769,1806.4,1806.3,1.6972]
[1745823562813,6.97769,1806.4,1806.3,40.8]
[1745823564116,12.06980305,1806.4,1806.3,40.8]
[1745823564516,7.06980305,1806.4,1806.3,40.8]
[1745823566512,7.06980334,1806.4,1806.3,40.8]
[1745823566719,6.29501334,1806.4,1806.3,40.8]
[1745823566918,7.06978334,1806.4,1806.3,40.8]
[1745823567120,6.97767,1806.4,1806.3,40.8]
[1745823568017,6.2029,1806.4,1806.3,40.8]
[1745823568323,6.97767,1806.4,1806.3,40.8]
[1745823570120,7.06978093,1806.4,1806.3,40.8]
[1745823571115,10.87179501,1806.4,1806.3,40.8]
[1745823571920,16.75979501,1806.4,1806.3,40.8]
[1745823572716,16.75978991,1806.4,1806.3,40.8]
[1745823574013,7.50111991,1806.4,1806.3,40.8]
[1745823574218,16.1317,1806.7,1806.3,44.0078]
[1745823574417,0.77474,1806.5,1806.4,1.6877]
[1745823574819,0.77477,1806.4,1806.3,44.0078]
[1745823575021,2.51627,1806.4,1806.3,44.0078]
[1745823575423,2.51627,1806.4,1806.3,40.8]
[1745823577126,6.12227,1806.4,1806.3,40.8]
[1745823578327,7.74737,1806.4,1806.3,40.8]
[1745823578825,7.83948415,1806.4,1806.3,40.8]
[1745823579027,7.74737,1806.4,1806.3,40.8]
[1745823581327,7.83948423,1806.4,1806.3,40.8]
[1745823581528,7.74737,1806.4,1806.3,40.8]
[1745823582323,8.90954,1806.4,1805.7,3.65483802]
[1745823582527,0.77494,1806.0,1805.9,2.4961]
[1745823583129,2.34714,1806.0,1805.9,2.4961]
[1745823583329,2.34714,1806.0,1805.9,43.2961]
[1745823585633,0.77494,1806.0,1805.9,46.5039]
[1745823587441,0.77494,1806.0,1805.9,43.2961]
[1745823592636,0.77494,1806.0,1805.9,40.8]
[1745823592934,0.77516,1805.5,1805.4,4.0726]
[1745823593139,0.77516,1805.5,1805.4,7.8746]
[1745823593732,0.77516,1805.5,1805.4,48.6746]
[1745823594137,0.77516,1805.5,1805.4,53.6746]
[1745823596739,0.77516,1805.5,1805.4,55.2679]
[1745823597434,5.54261,1805.8,1805.4,55.2679]
[1745823597638,5.54261,1805.8,1805.5,2.3933]
[1745823597639,0.77511,1805.6,1805.5,2.3933]
[1745823597844,0.77511,1805.6,1805.5,5.6011]
[1745823598043,0.77511,1805.6,1805.5,10.6011]
[1745823598243,0.77511,1805.6,1805.5,14.4031]
[1745823598542,3.605,1805.8,1805.5,14.4031]
[1745823598735,0.77507,1805.7,1805.6,1.6871]
[1745823598936,0.77507,1805.7,1805.6,4.8949]
[1745823600136,3.605,1805.8,1805.6,4.8949]
[1745823600445,3.605,1805.8,1805.7,2.5063]
[1745823601146,3.605,1805.8,1805.7,6.3083]
[1745823602042,3.606,1806.1,1805.7,7.08337]
[1745823602245,3.606,1806.1,1806.0,3.2078]
[1745823602442,1.6426,1806.5,1806.1,0.7749]
[1745823602643,1.6426,1806.5,1806.3,3.2078]
[1745823602947,2.41733,1806.5,1806.4,1.6322]
[1745823603534,3.606,1806.6,1806.4,42.4322]
[1745823603847,3.606,1806.6,1806.5,3.2078]
[1745823604046,3.606,1806.6,1806.5,5.6384]
[1745823604239,3.606,1806.6,1806.5,9.4404]
[1745823604440,3.606,1806.6,1806.5,50.2404]
[1745823605149,3.606,1806.6,1806.5,46.4384]
[1745823605350,5.2809,1806.6,1806.5,46.4384]
[1745823606044,6.05558,1806.6,1806.5,40.8]
[1745823606251,6.91938,1806.6,1806.5,40.8]
[1745823606452,6.1447,1806.6,1806.5,40.8]
[1745823606751,6.91938,1806.6,1806.5,40.8]
[1745823607246,6.3289008,1806.6,1806.5,40.8]
[1745823607552,0.7907,1806.8,1806.5,40.8]
[1745823607745,2.4227,1806.8,1806.6,3.3617]
[1745823608250,3.1973,1806.8,1806.6,3.3617]
[1745823608451,1.632,1806.7,1806.6,3.3617]
[1745823609349,1.632,1806.7,1806.6,1.6209]
[1745823609849,0.7907,1806.8,1806.6,2.39558]
[1745823610055,2.4227,1806.8,1806.7,1.7408]
[1745823610248,2.4227,1806.8,1806.6,1.6209]
[1745823610454,1.6527,1806.7,1806.6,1.6209]
[1745823611044,1.6527,1806.7,1806.6,0.8099]
[1745823611250,1.6527,1806.7,1806.5,44.0078]
[1745823611251,3.24664,1806.7,1806.5,44.0078]
[1745823611554,2.472,1806.7,1806.5,40.8]
[1745823611755,6.03238,1806.6,1806.5,40.8]
[1745823611951,6.12447915,1806.6,1806.5,40.8]
[1745823612153,11.12447915,1806.6,1806.5,40.8]
[1745823612550,0.77485,1806.3,1806.1,6.4753]
[1745823612851,4.03389,1806.2,1805.9,4.0292]
[1745823613051,1.6527,1806.1,1806.0,40.8]
[1745823614250,1.6527,1806.1,1806.0,44.602]
[1745823614453,0.787,1806.2,1806.0,44.602]
[1745823614656,3.605,1806.3,1806.1,3.2078]
[1745823614853,4.37981,1806.3,1806.2,2.5781]
[1745823615054,5.99481,1806.3,1806.2,2.5781]
[1745823615259,5.22,1806.3,1806.2,2.5781]
[1745823615555,5.22,1806.3,1806.2,43.3781]
[1745823615861,5.22,1806.3,1806.2,44.2277]
[1745823616157,3.605,1806.3,1806.2,48.0297]
[1745823616555,2.36453,1806.5,1806.2,48.0297]
[1745823616860,1.58861,1806.6,1806.3,4.8972]
[1745823617060,1.58861,1806.6,1806.4,1.6894]
[1745823617260,3.17841,1806.6,1806.4,1.6894]
[1745823617563,3.17841,1806.6,1806.5,0.8494]
[1745823618363,3.17841,1806.6,1806.5,45.4514]
[1745823619359,3.17841,1806.6,1806.5,40.8]
[1745823619564,2.36451,1806.6,1806.5,40.8]
[1745823620861,2.36451,1806.6,1806.5,42.4497]
[1745823621955,3.605,1806.7,1806.5,45.6575]
[1745823622157,3.604,1807.0,1806.6,2.5104]
[1745823622461,0.77455,1806.9,1806.8,3.2078]
[1745823622850,2.46295,1806.9,1806.8,44.0078]
[1745823623056,3.604,1807.3,1806.8,44.0078]
[1745823623257,0.77453,1807.0,1806.9,1.5853]
[1745823624262,2.46293,1807.0,1806.9,1.5853]
[1745823625067,0.77455,1806.9,1806.8,40.8]
[1745823625265,3.25555,1806.9,1806.8,40.8]
[1745823629170,8.347635,1806.9,1806.8,40.8]
[1745823629970,3.347635,1806.9,1806.8,40.8]
[1745823630169,3.34763663,1806.9,1806.8,40.8]
[1745823631672,3.34763975,1806.9,1806.8,40.8]
[1745823631870,1.93671,1806.7,1806.3,0.804]
[1745823632074,3.69608975,1806.6,1806.3,0.804]
[1745823632371,0.77477,1806.4,1806.3,2.4933]
[1745823632774,0.77477,1806.4,1806.3,43.2933]
[1745823633174,0.77477,1806.4,1806.3,47.0953]
[1745823635076,0.77477,1806.4,1806.3,43.2933]
[1745823635569,0.77477,1806.4,1806.3,40.8]
[1745823635774,2.45157,1806.4,1806.3,40.8]
[1745823636371,2.54368338,1806.4,1806.3,40.8]
[1745823636975,4.26768338,1806.4,1806.3,40.8]
[1745823637671,4.17557,1806.4,1806.3,40.8]
[1745823637870,4.35979478,1806.4,1806.3,40.8]
[1745823641375,8.58502478,1806.4,1806.2,3.2078]
[1745823641578,0.7749,1806.1,1806.0,3.2078]
[1745823642574,0.7749,1806.1,1806.0,44.0078]
[1745823643380,0.7749,1806.1,1806.0,40.8]
[1745823647686,0.7749,1806.1,1806.0,44.0078]
[1745823652394,1.6017,1806.1,1806.0,44.0078]
[1745823653392,1.6017,1806.1,1806.0,40.8]
[1745823653790,1.6017,1806.1,1806.0,44.0078]
[1745823654694,0.7749,1806.1,1806.0,44.0078]
[1745823655087,2.4399,1806.1,1806.0,44.0078]
[1745823657402,0.7749,1806.1,1806.0,44.0078]
[1745823657891,0.77487,1806.2,1806.0,49.0078]
[1745823658094,0.77487,1806.2,1806.1,2.5796]
[1745823658595,0.09211239,1806.4,1806.1,7.5796]
[1745823658901,0.09211239,1806.4,1806.3,3.2078]
[1745823659399,0.09211239,1806.4,1806.3,13.6924]
[1745823660102,0.86688239,1806.4,1806.3,13.6924]
[1745823660705,0.86688239,1806.4,1806.3,8.6924]
[1745823664704,0.86688239,1806.4,1806.3,7.0098]
[1745823664905,0.09211239,1806.4,1806.3,7.0098]
[1745823665207,1.78941239,1806.4,1806.3,3.2078]
[1745823665605,1.78941239,1806.4,1806.3,4.943]
[1745823669005,2.56418239,1806.4,1806.3,4.943]
[1745823669206,1.78941239,1806.4,1806.3,4.943]
[1745823669405,2.56418239,1806.4,1806.3,4.943]
[1745823669606,3.38838239,1806.4,1806.3,3.2078]
[1745823672516,0.7749,1806.1,1806.0,45.6323]
[1745823673214,2.4612,1806.1,1806.0,46.4963]
[1745823674413,2.4612,1806.1,1806.0,43.2885]
[1745823676723,8.3492,1806.1,1806.0,39.65793]
[1745823677017,0.77503,1805.8,1805.7,1e-05]
[1745823677218,0.77507,1805.7,1805.6,2.4369]
[1745823677515,3.27917,1805.7,1805.6,2.4369]
[1745823677816,3.27917,1805.7,1805.6,43.2369]
[1745823678116,3.27917,1805.7,1805.6,40.8]
[1745823678309,3.37132145,1805.7,1805.6,40.8]
[1745823678510,4.1899225,1805.7,1805.6,40.8]
[1745823679509,4.09777,1805.7,1805.6,40.8]
[1745823680719,4.18992053,1805.7,1805.6,40.8]
[1745823680915,4.18992053,1805.7,1805.4,0.8188]
[1745823680916,0.7752,1805.4,1805.3,1.6999]